bitfinex/quotes_SOLUSD_20250907
["timestamp","ask_amount","ask_price","bid_price","bid_amount"]
[1757234710616,93.68370574,203.83,203.81,1e-08]
[1757234710815,148.39384669,203.82,203.81,1e-08]
[1757234711131,16.09384669,203.82,203.81,1e-08]
[1757234711308,18.74969016,203.82,203.81,1e-08]
[1757234711508,18.05969016,203.82,203.81,1e-08]
[1757234712525,15.56143748,203.82,203.81,1e-08]
[1757234712710,22.96598002,203.82,203.81,1e-08]
[1757234713106,20.46772734,203.82,203.81,0.66000001]
[1757234713306,60.58598002,203.82,203.81,0.66000001]
[1757234713711,60.58598002,203.82,203.81,4.20866613]
[1757234714728,46.99038601,203.82,203.81,4.20866613]
[1757234715728,44.49213333,203.82,203.81,4.20866613]
[1757234715923,6.87213333,203.82,203.81,4.20866613]
[1757234717832,0.06,203.86,203.81,4.20866613]
[1757234718009,4.23866613,203.85,203.82,4.20866612]
[1757234718208,4.96538618,203.86,203.83,4.20866612]
[1757234718525,9.20405232,203.86,203.84,4.20866612]
[1757234718705,9.20405232,203.86,203.85,4.20866612]
[1757234718706,4.29866614,203.86,203.85,4.20866612]
[1757234718906,0.06,203.86,203.85,4.20866612]
[1757234719106,0.06,203.86,203.85,9.14539963]
[1757234719717,0.06,203.86,203.85,14.05096744]
[1757234719923,0.0012461,203.86,203.85,14.05096744]
[1757234720137,0.0012461,203.86,203.85,9.14539963]
[1757234720433,0.0012461,203.86,203.85,4.20866612]
[1757234720930,0.0012461,203.86,203.85,6.17335091]
[1757234721137,0.0012461,203.86,203.85,4.20866612]
[1757234722009,0.0012461,203.86,203.85,4.22862314]
[1757234728619,0.0012461,203.86,203.85,3.56862314]
[1757234729344,3.20949878,203.86,203.85,3.56862314]
[1757234729527,8.11482596,203.86,203.85,3.56862314]
[1757234731027,21.71041997,203.86,203.85,3.56862314]
[1757234731228,25.27904311,203.86,203.85,3.56862314]
[1757234732057,2.49825268,203.82,203.81,1e-08]
[1757234732740,3.20825268,203.82,203.81,1e-08]
[1757234733140,2.49825268,203.82,203.81,1e-08]
[1757234733344,2.49825268,203.83,203.81,1e-08]
[1757234733731,4.96628986,203.82,203.81,1e-08]
[1757234735044,7.46454254,203.82,203.81,1e-08]
[1757234736139,4.96628986,203.82,203.81,1e-08]
[1757234740642,5.67628986,203.82,203.81,1e-08]
[1757234740960,8.17454254,203.82,203.81,1e-08]
[1757234742154,2.55825268,203.82,203.81,1e-08]
[1757234742360,3.26825268,203.82,203.81,1e-08]
[1757234742560,2.55825268,203.82,203.81,1e-08]
[1757234743058,3.26825268,203.82,203.81,1e-08]
[1757234743962,7.46454254,203.82,203.81,3.49992685]
[1757234744154,0.06,203.82,203.81,3.49992685]
[1757234744463,0.06,203.82,203.81,4.20992685]
[1757234747966,0.06,203.82,203.81,3.49992685]
[1757234748171,0.77,203.82,203.81,3.49992685]
[1757234748547,3.26825268,203.82,203.81,3.49992685]
[1757234749573,5.67628986,203.82,203.81,3.49992685]
[1757234750474,8.17454254,203.82,203.81,3.49992685]
[1757234755579,9.58001157,203.82,203.81,3.49992685]
[1757234756864,8.87001157,203.82,203.81,3.49992685]
[1757234757477,9.58001157,203.82,203.81,3.49992685]
[1757234758675,8.87001157,203.82,203.81,3.49992685]
[1757234759082,4.96628986,203.82,203.81,3.49992685]
[1757234759285,8.87001157,203.82,203.81,3.49992685]
[1757234759660,4.96628986,203.82,203.81,3.49992685]
[1757234759860,8.87001157,203.82,203.81,3.49992685]
[1757234760080,9.58001157,203.82,203.81,3.49992685]
[1757234763863,60.77560558,203.82,203.81,3.49992685]
[1757234764177,64.27553243,203.82,203.81,3.49992685]
[1757234765467,64.27553243,203.82,203.81,1e-08]
[1757234768779,64.27553243,203.82,203.8,0.03]
[1757234769102,3.90372171,203.81,203.8,0.03]
[1757234769588,6.57956518,203.81,203.8,0.03]
[1757234770279,11.48609577,203.81,203.8,0.03]
[1757234770480,143.78609577,203.81,203.8,0.03]
[1757234776401,11.48609577,203.81,203.8,0.03]
[1757234777419,11.48609577,203.81,203.8,3.47029661]
[1757234778594,37.48609577,203.81,203.8,3.47029661]
[1757234779105,51.08168978,203.81,203.79,0.03]
[1757234779304,41.48372171,203.8,203.79,0.03]
[1757234779621,55.07931572,203.8,203.79,0.03]
[1757234779916,57.71535244,203.8,203.79,0.03]
[1757234780123,53.81163073,203.8,203.79,0.03]
[1757234780322,57.71535244,203.8,203.79,0.03]
[1757234780999,62.62212378,203.8,203.79,0.03]
[1757234786421,20.46840207,203.8,203.79,0.03]
[1757234786736,61.95212378,203.8,203.79,0.72]
[1757234786907,61.95212378,203.8,203.79,0.03]
[1757234787493,62.62212378,203.8,203.79,0.03]
[1757234793304,66.52584549,203.8,203.79,0.03]
[1757234797723,43.49931572,203.78,203.77,0.72]
[1757234797906,81.07931572,203.78,203.77,0.03]
[1757234798418,83.04554572,203.78,203.77,0.03]
[1757234799325,88.62279863,203.78,203.77,0.03]
[1757234805225,26.0,203.75,203.74,0.03]
[1757234805523,67.48372171,203.75,203.74,0.03]
[1757234806031,73.17650954,203.75,203.74,0.03]
[1757234806611,72.50650954,203.75,203.74,0.03]
[1757234807116,77.414485,203.75,203.74,0.03]
[1757234807829,39.834485,203.75,203.74,0.03]
[1757234808022,77.414485,203.75,203.74,0.03]
[1757234809303,78.074485,203.75,203.74,0.03]
[1757234809525,91.67007901,203.75,203.74,0.03]
[1757234809726,91.01007901,203.75,203.74,0.03]
[1757234810514,53.43007901,203.75,203.74,0.03]
[1757234810732,91.01007901,203.75,203.74,0.03]
[1757234812619,87.1063573,203.75,203.74,0.71]
[1757234812930,91.01007901,203.75,203.74,0.03]
[1757234814023,87.1063573,203.75,203.74,0.71]
[1757234814213,91.01007901,203.75,203.74,0.71]
[1757234814844,91.01007901,203.75,203.74,0.03]
[1757234817523,89.60681206,203.75,203.74,0.03]
[1757234817845,90.26681206,203.75,203.74,0.03]
[1757234820150,89.60681206,203.75,203.74,0.03]
[1757234820353,90.26681206,203.75,203.74,0.03]
[1757234821355,89.60681206,203.75,203.74,0.03]
[1757234821551,90.26681206,203.75,203.74,0.03]
[1757234823061,52.68681206,203.75,203.74,0.03]
[1757234823366,90.26681206,203.75,203.74,0.03]
[1757234830965,90.26681206,203.75,203.74,0.03]
[1757234842463,87.7663573,203.75,203.74,0.03]
[1757234842653,90.26681206,203.75,203.74,0.03]
[1757234853478,90.24681206,203.75,203.74,0.03]
[1757234854482,52.68681206,203.75,203.74,0.03]
[1757234854677,90.24681206,203.75,203.74,0.03]
[1757234855072,52.68681206,203.75,203.74,0.03]
[1757234855277,90.24681206,203.75,203.74,0.03]
[1757234856580,52.68681206,203.75,203.74,0.03]
[1757234856781,90.24681206,203.75,203.74,0.03]
[1757234862271,52.68681206,203.75,203.74,0.03]
[1757234862670,90.24681206,203.75,203.74,0.03]
[1757234867495,13.59559401,203.74,203.71,0.68]
[1757234867674,16.09604877,203.72,203.71,0.03]
[1757234867871,53.65604877,203.72,203.71,0.03]
[1757234868073,56.32295557,203.72,203.71,0.03]
[1757234868274,55.62295557,203.72,203.71,0.03]
[1757234869300,60.53165378,203.72,203.71,0.03]
[1757234873302,61.22165378,203.72,203.71,0.03]
[1757234873600,60.53165378,203.72,203.71,0.03]
[1757234875878,61.22165378,203.72,203.71,0.03]
[1757234879298,58.72119902,203.72,203.71,0.03]
[1757234879611,62.63081762,203.72,203.71,0.03]
[1757234885617,62.63081762,203.72,203.65,0.67]
[1757234885618,39.59559401,203.69,203.65,0.67]
[1757234885796,3.9096186,203.66,203.65,0.67]
[1757234886109,41.4696186,203.66,203.65,0.67]
[1757234886697,61.13301481,203.66,203.65,0.67]
[1757234887890,61.13301481,203.66,203.63,0.67]
[1757234888083,61.13301481,203.66,203.58,19.76009987]
[1757234888084,3.9096186,203.64,203.58,19.76009987]
[1757234888284,3.9096186,203.63,203.58,19.76009987]
[1757234888496,3.9096186,203.63,203.59,0.67]
[1757234889209,3.9096186,203.62,203.59,0.67]
[1757234890009,4.91135013,203.61,203.59,0.67]
[1757234891091,8.82096873,203.61,203.59,0.67]
[1757234891996,8.82096873,203.61,203.59,0.7]
[1757234892315,4.91110892,203.62,203.59,0.7]
[1757234892615,8.82072752,203.62,203.59,0.7]
[1757234893715,4.91110892,203.62,203.59,0.7]
[1757234897021,8.82072752,203.62,203.59,0.7]
[1757234898810,3.9096186,203.6,203.59,0.7]
[1757234899120,3.9096186,203.6,203.59,0.03]
[1757234899433,3.9096186,203.6,203.59,0.73]
[1757234900005,8.82120995,203.6,203.59,0.73]
[1757234901325,8.82120995,203.6,203.59,0.03]
[1757234903826,9.48120995,203.6,203.59,0.03]
[1757234904623,18.3024199,203.6,203.59,0.03]
[1757234904830,17.6424199,203.6,203.59,0.03]
[1757234905223,136.2096186,203.62,203.59,0.73]
[1757234905425,141.15264451,203.62,203.59,0.73]
[1757234905608,137.24302591,203.62,203.59,0.73]
[1757234905803,132.3,203.62,203.59,0.73]
[1757234906434,132.3,203.62,203.6,0.7]
[1757234911935,132.3,203.62,203.59,0.73]
[1757234912534,132.3,203.62,203.6,0.7]
[1757234912918,132.3,203.62,203.61,0.7]
[1757234913320,132.3,203.62,203.59,0.73]
[1757234913525,132.96,203.62,203.6,9.82495635]
[1757234914016,132.3,203.62,203.6,9.82495635]
[1757234914415,132.3,203.62,203.6,10.52495635]
[1757234916743,132.3,203.62,203.6,9.82495635]
[1757234917243,132.3,203.62,203.6,10.52495635]
[1757234918310,132.3,203.62,203.61,0.7]
[1757234919845,132.3,203.62,203.6,15.4365426]
[1757234920064,4.5696186,203.61,203.6,9.82495635]
[1757234920354,0.66,203.61,203.59,0.03]
[1757234923837,0.66,203.6,203.59,0.03]
[1757234926827,132.96,203.62,203.59,0.03]
[1757234927348,0.66,203.61,203.59,0.03]
[1757234931954,0.68,203.6,203.59,0.03]
[1757234934054,132.3,203.62,203.59,0.03]
[1757234934253,0.68,203.61,203.59,0.03]
[1757234935042,0.68,203.6,203.59,0.03]
[1757234943846,139.71450186,203.62,203.59,0.03]
[1757234944166,0.68,203.61,203.59,0.03]
[1757234944660,139.71450186,203.62,203.59,0.03]
[1757234944858,0.68,203.61,203.59,0.03]
[1757234946143,3.18333965,203.61,203.59,0.03]
[1757234947070,8.09475116,203.61,203.59,0.03]
[1757234949743,5.59141151,203.61,203.59,0.03]
[1757234950670,0.68,203.61,203.59,0.03]
[1757234953565,139.71447642,203.62,203.59,0.03]
[1757234953765,0.68,203.61,203.59,0.03]
[1757234954259,139.71447642,203.62,203.59,0.03]
[1757234954464,0.68,203.6,203.59,0.03]
[1757234965483,8.094931,203.6,203.59,0.03]
[1757234968774,5.59159135,203.6,203.59,0.03]
[1757234968977,8.094931,203.6,203.59,0.03]
[1757234970974,5.59159135,203.6,203.59,0.03]
[1757234971173,8.094931,203.6,203.59,0.03]
[1757234977788,169.82,203.62,203.61,20.0]
[1757234978286,184.57760632,203.62,203.61,20.0]
[1757234978780,189.48871524,203.62,203.61,20.0]
[1757234978987,191.99205489,203.62,203.61,20.0]
[1757234979687,205.5876489,203.62,203.61,20.0]
[1757234980284,203.08430925,203.62,203.61,20.0]
[1757234980473,205.5876489,203.62,203.61,20.0]
[1757234980990,205.5876489,203.62,203.59,20.03]
[1757234981287,4.91159135,203.6,203.59,20.03]
[1757234981883,7.414931,203.6,203.59,20.03]
[1757234982389,4.91159135,203.6,203.59,20.03]
[1757234982589,7.414931,203.6,203.59,20.03]
[1757234984080,132.3,203.61,203.59,20.03]
[1757234984395,2.50333965,203.6,203.59,20.03]
[1757234986092,7.414931,203.6,203.59,20.03]
[1757234989478,26.0,203.65,203.59,20.03]
[1757234989673,2.50333965,203.6,203.59,20.03]
[1757234992108,17.18759478,203.64,203.59,20.03]
[1757234992398,2.50333965,203.6,203.59,20.03]
[1757234993106,7.414931,203.6,203.59,20.03]
[1757234993599,2.50333965,203.63,203.61,20.0]
[1757234993801,4.91038546,203.65,203.62,0.68]
[1757234994007,2.50333965,203.63,203.62,0.68]
[1757234994185,2.50333965,203.63,203.62,4.1118037]
[1757234994382,2.50333965,203.63,203.62,3.4318037]
[1757234995100,7.4142074,203.63,203.62,3.4318037]
[1757234997109,2.50323415,203.63,203.62,3.4318037]
[1757234997502,2.50323415,203.63,203.61,20.0]
[1757234997703,2.50323415,203.62,203.61,20.0]
[1757234998911,7.41434307,203.62,203.61,20.0]
[1757234999584,7.41434307,203.62,203.61,20.68]
[1757235000314,2.50323415,203.62,203.61,20.68]
[1757235000615,4.91088338,203.63,203.61,20.68]
[1757235000809,7.41411753,203.63,203.61,20.68]
[1757235001510,3.91110634,203.62,203.61,20.68]
[1757235001811,4.91088338,203.63,203.61,20.68]
[1757235002015,4.91088338,203.63,203.61,20.0]
[1757235002217,4.91088338,203.63,203.62,0.68]
[1757235002812,4.91088338,203.63,203.61,20.0]
[1757235003417,3.91110634,203.62,203.61,20.0]
[1757235004194,3.91110634,203.62,203.61,57.5]
[1757235004912,8.82221526,203.62,203.61,57.5]
[1757235005412,8.82221526,203.62,203.61,20.0]
[1757235005629,8.82221526,203.62,203.61,57.5]
[1757235008302,4.91110892,203.62,203.61,57.5]
[1757235008606,8.82221526,203.62,203.61,57.5]
[1757235013831,8.82221526,203.62,203.61,20.0]
[1757235014139,8.82221526,203.62,203.61,57.48]
[1757235018234,4.91062659,203.64,203.61,57.48]
[1757235018427,3.91110634,203.62,203.61,58.16]
[1757235021543,8.82221526,203.62,203.61,58.16]
[1757235024836,8.82221526,203.62,203.61,20.68]
[1757235025036,8.82221526,203.62,203.61,58.16]
[1757235028239,8.82221526,203.62,203.61,57.48]
[1757235028634,8.82221526,203.62,203.61,58.19]
[1757235036342,4.91110892,203.62,203.61,58.19]
[1757235036544,8.82221526,203.62,203.61,58.19]
[1757235037348,8.82221526,203.62,203.61,37.51]
[1757235037848,8.82221526,203.62,203.61,38.22]
[1757235038424,4.91110892,203.62,203.61,38.22]
[1757235038626,8.82221526,203.62,203.61,38.22]
[1757235041351,4.91110892,203.62,203.61,38.22]
[1757235041651,8.82221526,203.62,203.61,38.22]
[1757235042654,23.58054757,203.62,203.61,38.22]
[1757235044140,23.58054757,203.62,203.61,37.51]
[1757235044346,23.58054757,203.62,203.61,38.22]
[1757235052052,23.58054757,203.62,203.61,37.51]
[1757235052755,23.58054757,203.62,203.61,38.18]
[1757235053049,23.58054757,203.62,203.61,37.51]
[1757235053257,23.58054757,203.62,203.61,38.18]
[1757235054154,23.58054757,203.62,203.61,0.03]
[1757235057134,19.66944123,203.62,203.61,0.03]
[1757235057352,23.58054757,203.62,203.61,0.7]
[1757235061463,22.17384871,203.62,203.61,0.7]
[1757235062773,22.17384871,203.62,203.61,0.03]
[1757235063479,22.17384871,203.62,203.61,0.7]
[1757235066963,19.66944123,203.62,203.61,0.7]
[1757235067170,22.17384871,203.62,203.61,0.7]
[1757235068751,22.17384871,203.62,203.61,20.7]
[1757235069067,7.4155164,203.62,203.61,58.16]
[1757235069651,7.4155164,203.62,203.61,61.80470795]
[1757235071991,4.91086775,203.63,203.61,61.80470795]
[1757235072280,2.50440748,203.62,203.61,57.49]
[1757235072490,2.50440748,203.62,203.61,61.07344759]
[1757235072787,2.50440748,203.62,203.61,61.74344759]
[1757235072985,2.50440748,203.62,203.61,24.28344759]
[1757235073287,7.4155164,203.62,203.61,61.74344759]
[1757235074983,4.91086775,203.63,203.61,61.74344759]
[1757235075175,7.41527523,203.63,203.62,4.25344759]
[1757235076581,4.91062659,203.64,203.62,4.25344759]
[1757235076783,4.91062659,203.64,203.63,41.95344759]
[1757235078186,7.41503407,203.64,203.63,41.95344759]
[1757235078483,4.91062659,203.64,203.63,41.95344759]
[1757235078785,7.41503407,203.64,203.63,41.95344759]
[1757235082995,7.41503407,203.64,203.63,41.95344759]
[1757235083469,14.75615454,203.65,203.64,20.0]
[1757235083788,2.50440748,203.65,203.64,24.27344759]
[1757235084494,7.41479294,203.65,203.64,24.27344759]
[1757235084864,2.50440748,203.65,203.64,24.27344759]
[1757235085272,2.50440748,203.65,203.64,39.02742502]
[1757235086307,7.41458414,203.66,203.64,39.02742502]
[1757235086481,7.41458414,203.66,203.65,42.35344759]
[1757235087095,2.50440748,203.66,203.65,42.35344759]
[1757235087394,2.50230528,203.66,203.65,42.35344759]
[1757235087980,4.90966221,203.68,203.66,20.0]
[1757235088201,4.90966221,203.68,203.67,41.64344759]
[1757235088375,4.90966221,203.68,203.67,42.33344759]
[1757235088575,14.75397742,203.69,203.67,42.33344759]
[1757235088576,14.75397742,203.69,203.68,20.0]
[1757235088770,4.90919977,203.7,203.68,24.27344759]
[1757235088992,17.23875723,203.74,203.7,20.0]
[1757235089185,31.98983283,203.74,203.7,23.58344759]
[1757235089387,31.98983283,203.74,203.7,24.27344759]
[1757235089696,31.98983283,203.74,203.7,39.02452319]
[1757235089697,17.23875723,203.74,203.7,39.02452319]
[1757235089997,2.56230528,203.71,203.7,39.02452319]
[1757235090297,7.47124445,203.71,203.7,39.02452319]
[1757235091891,4.96893917,203.71,203.7,39.02452319]
[1757235092204,7.47124445,203.71,203.7,39.02452319]
[1757235092413,2.56230528,203.71,203.7,39.02452319]
[1757235092601,0.06,203.71,203.7,39.02452319]
[1757235096404,2.56230528,203.71,203.7,39.02452319]
[1757235097019,0.06,203.71,203.7,39.02452319]
[1757235098689,2.56230528,203.71,203.7,77.04452319]
[1757235104926,7.47124445,203.71,203.7,76.98452319]
[1757235107630,7.47124445,203.71,203.7,77.01452319]
[1757235110029,7.47124445,203.71,203.7,38.36452319]
[1757235110225,17.48046557,203.71,203.7,37.92]
[1757235110423,17.48046557,203.71,203.7,11.72438955]
[1757235110737,42.08313975,203.71,203.67,0.03]
[1757235110933,2.50230528,203.68,203.67,0.03]
[1757235111156,2.50230528,203.68,203.66,27.82]
[1757235111426,10.00922112,203.7,203.67,0.71]
[1757235111621,14.7510756,203.68,203.67,0.71]
[1757235111926,4.90926102,203.7,203.67,34.87]
[1757235112128,4.90926102,203.7,203.68,0.71]
[1757235112333,4.90926102,203.7,203.69,37.92]
[1757235112635,7.4115663,203.7,203.69,38.63]
[1757235112835,22.16119141,203.7,203.69,38.63]
[1757235117415,32.17041253,203.7,203.69,38.63]
[1757235118342,22.16119141,203.7,203.69,38.63]
[1757235122247,22.16119141,203.7,203.69,42.16538418]
[1757235123534,23.56746523,203.7,203.69,42.16538418]
[1757235124232,23.56746523,203.7,203.69,4.24538418]
[1757235124429,23.56746523,203.7,203.69,42.10538418]
[1757235126039,23.62746523,203.7,203.69,42.10538418]
[1757235130132,14.80962511,203.7,203.69,42.10538418]
[1757235130845,0.06,203.7,203.69,42.10538418]
[1757235132447,0.06,203.7,203.69,56.8528341]
[1757235141761,0.06,203.7,203.69,42.10538418]
[1757235142667,0.06,203.7,203.69,42.00538418]
[1757235150560,0.06,203.7,203.69,56.0919203]
[1757235150775,0.06,203.7,203.69,62.04194241]
[1757235160478,0.06,203.7,203.69,24.28194241]
[1757235160979,0.06,203.7,203.69,61.96194241]
[1757235170088,0.06,203.7,203.69,24.28194241]
[1757235170262,0.06,203.7,203.69,61.94194241]
[1757235172282,0.06,203.7,203.69,61.92194241]
[1757235172957,0.06,203.7,203.69,57.93795702]
[1757235174379,0.06,203.7,203.69,20.29795702]
[1757235174680,0.06,203.7,203.69,57.95795702]
[1757235175274,0.06,203.7,203.69,3.53538418]
[1757235175476,0.06,203.7,203.69,41.19538418]
[1757235187395,0.06,203.7,203.69,41.88538418]
[1757235188475,0.06,203.7,203.69,55.48097819]
[1757235188983,0.06,203.7,203.69,56.05516718]
[1757235191283,0.06,203.7,203.69,58.02110727]
[1757235192489,0.06,203.7,203.69,54.40247621]
[1757235192696,0.06,203.7,203.69,58.01903708]
[1757235199805,0.06,203.7,203.69,58.01747876]
[1757235205001,0.06,203.7,203.69,20.35747876]
[1757235205208,0.06,203.7,203.69,57.91747876]
[1757235215910,0.06,203.7,203.69,20.38747876]
[1757235216113,0.06,203.7,203.69,57.92747876]
[1757235221615,0.06,203.7,203.69,57.92582185]
[1757235226417,0.06,203.7,203.69,19.66582185]
[1757235226630,0.06,203.7,203.69,56.71487974]
[1757235227590,0.06,203.7,203.69,5.57928573]
[1757235227785,0.06,203.7,203.69,41.15334564]
[1757235238025,0.06,203.7,203.69,41.83334564]
[1757235239605,0.06,203.7,203.69,41.15334564]
[1757235244825,0.06,203.7,203.69,3.61334564]
[1757235245035,0.06,203.7,203.69,41.15334564]
[1757235245934,0.06,203.7,203.69,41.13806282]
[1757235246733,0.06,203.7,203.69,3.59806282]
[1757235247024,3.96694173,203.7,203.69,3.59806282]
[1757235247234,3.96694173,203.7,203.69,41.13806282]
[1757235247712,7.56500455,203.7,203.69,41.13806282]
[1757235248113,12.47418471,203.7,203.69,41.13806282]
[1757235254631,12.47418471,203.7,203.69,3.59806282]
[1757235254818,12.47418471,203.7,203.69,41.13806282]
[1757235262039,12.47418471,203.7,203.69,41.79806282]
[1757235262539,12.47418471,203.7,203.69,41.13806282]
[1757235262931,12.47418471,203.7,203.69,41.79806282]
[1757235263140,8.87612189,203.7,203.69,41.79806282]
[1757235268951,8.87612189,203.7,203.69,41.13806282]
[1757235269146,8.87612189,203.7,203.69,41.79806282]
[1757235271150,8.87612189,203.7,203.69,41.79551066]
[1757235277862,4.96918016,203.7,203.69,41.79551066]
[1757235278046,8.87612189,203.7,203.69,41.79551066]
[1757235279162,8.87612189,203.7,203.69,41.13551066]
[1757235279857,8.87612189,203.7,203.69,41.79551066]
[1757235281454,8.87612189,203.7,203.69,4.25551066]
[1757235281659,8.87612189,203.7,203.69,41.79551066]
[1757235282857,8.87612189,203.7,203.69,4.25551066]
[1757235283043,8.87612189,203.7,203.69,41.79551066]
[1757235292067,4.96918016,203.7,203.69,41.79551066]
[1757235292370,8.87612189,203.7,203.69,41.79551066]
[1757235296264,8.87612189,203.7,203.69,3.59551066]
[1757235296771,8.87612189,203.7,203.69,41.11551066]
[1757235296960,16.37857428,203.7,203.65,0.74]
[1757235297159,3.90694173,203.66,203.65,37.55]
[1757235297360,3.90694173,203.66,203.65,0.03]
[1757235298471,8.81708608,203.66,203.65,0.03]
[1757235298977,10.78428307,203.66,203.65,0.03]
[1757235303288,10.78428307,203.66,203.65,0.74]
[1757235304598,4.91014435,203.66,203.65,0.74]
[1757235306576,4.90990327,203.67,203.65,0.74]
[1757235307080,7.41160504,203.67,203.65,0.74]
[1757235307280,2.50170177,203.66,203.65,0.74]
[1757235307479,2.50170177,203.66,203.65,0.03]
[1757235308085,4.90990327,203.67,203.65,0.74]
[1757235308086,7.41160504,203.67,203.65,0.74]
[1757235308601,2.50170177,203.66,203.65,0.03]
[1757235308764,2.50170177,203.66,203.65,3.48292305]
[1757235309582,5.98462482,203.66,203.65,3.48292305]
[1757235310270,5.98462482,203.66,203.65,3.48152138]
[1757235310588,10.89476917,203.66,203.65,3.48152138]
[1757235311375,8.3930674,203.66,203.65,3.48152138]
[1757235311581,10.89476917,203.66,203.65,3.48152138]
[1757235314978,10.89476917,203.66,203.65,4.19152138]
[1757235317300,10.89476917,203.66,203.65,3.48152138]
[1757235317684,10.89476917,203.66,203.65,3.48083459]
[1757235318892,10.89476917,203.66,203.65,4.19083459]
[1757235320500,10.89476917,203.66,203.65,3.48083459]
[1757235321580,8.3930674,203.66,203.65,3.48083459]
[1757235321798,10.89476917,203.66,203.65,3.48083459]
[1757235322281,7.41184612,203.66,203.65,3.48083459]
[1757235322892,7.41184612,203.66,203.63,1e-08]
[1757235323087,7.41184612,203.66,203.61,0.75]
[1757235323088,28.50170177,203.64,203.61,1e-08]
[1757235323296,2.50170177,203.62,203.61,1e-08]
[1757235323675,4.46938261,203.62,203.61,1e-08]
[1757235323876,30.46938261,203.62,203.61,1e-08]
[1757235324786,35.38049153,203.62,203.61,1e-08]
[1757235327202,72.90049153,203.62,203.61,1e-08]
[1757235327405,35.38049153,203.62,203.61,1e-08]
[1757235327597,72.90049153,203.62,203.61,1e-08]
[1757235328399,35.38049153,203.62,203.61,1e-08]
[1757235328608,72.90049153,203.62,203.61,0.72000001]
[1757235328793,72.90049153,203.62,203.61,1e-08]
[1757235330500,35.38049153,203.62,203.61,1e-08]
[1757235330705,72.90049153,203.62,203.61,1e-08]
[1757235334700,6.87878976,203.62,203.61,0.72000001]
[1757235334896,4.91110892,203.62,203.61,0.72000001]
[1757235336115,4.91086775,203.63,203.61,0.72000001]
[1757235336508,7.41256952,203.63,203.61,0.72000001]
[1757235336815,2.50170177,203.62,203.61,0.72000001]
[1757235340723,7.41281069,203.62,203.61,0.72000001]
[1757235342408,7.41281069,203.62,203.61,1e-08]
[1757235342910,7.41281069,203.62,203.61,0.72000001]
[1757235343908,7.41281069,203.62,203.61,1e-08]
[1757235344318,9.38068514,203.62,203.61,1e-08]
[1757235345126,35.38068514,203.62,203.61,1e-08]
[1757235346121,48.97627915,203.62,203.61,1e-08]
[1757235346425,26.0,203.59,203.56,0.03]
[1757235346627,2.50170177,203.57,203.56,0.03]
[1757235347226,5.00340354,203.57,203.56,0.03]
[1757235348230,9.91571871,203.57,203.56,0.03]
[1757235349117,9.91571871,203.57,203.56,0.75]
[1757235349317,9.91571871,203.57,203.56,0.03]
[1757235351540,47.43571871,203.57,203.56,0.03]
[1757235353339,7.41401694,203.57,203.56,0.03]
[1757235353525,7.41401694,203.57,203.56,0.7]
[1757235353711,9.91571871,203.57,203.56,0.7]
[1757235353913,7.41401694,203.57,203.56,0.7]
[1757235354112,9.91571871,203.57,203.56,0.7]
[1757235355624,9.91571871,203.57,203.56,0.03]
[1757235355936,9.91571871,203.57,203.56,0.7]
[1757235358038,9.87408612,203.57,203.56,0.7]
[1757235361130,7.37238435,203.57,203.56,0.65891349]
[1757235361332,9.87408612,203.57,203.56,0.65891349]
[1757235363135,7.41401694,203.57,203.56,0.65891349]
[1757235365438,8.82553473,203.57,203.56,0.65891349]
[1757235371536,8.82553473,203.57,203.56,0.68891349]
[1757235372229,4.91231517,203.57,203.56,0.68891349]
[1757235375718,0.06,203.58,203.56,0.68891349]
[1757235376831,29.91321956,203.57,203.56,0.03]
[1757235377237,33.82643912,203.57,203.56,0.7]
[1757235377657,33.82643912,203.57,203.56,0.03]
[1757235377946,38.73875429,203.57,203.56,0.03]
[1757235383766,38.73875429,203.57,203.56,0.74]
[1757235384257,38.73875429,203.57,203.56,0.03]
[1757235384858,38.73875429,203.57,203.56,0.74]